[Event "Live Chess"]
[Site "Chess.com"]
[Date "2023.05.21"]
[Round "-"]
[White "Biranidun"]
[Black "garyjc"]
[Result "1-0"]
[WhiteElo "2541"]
[BlackElo "1046"]
[TimeControl "300"]
[EndTime "19:20:39 PDT"]
[Termination "Biranidun won by resignation"]

1. e4 {[%clk 0:04:39.3]} 1... c5 {[%clk 0:04:57.5]} 2. Nf3 {[%clk 0:04:38.4]}
2... d6 {[%clk 0:04:56.2]} 3. d4 {[%clk 0:04:37.8]} 3... cxd4 {[%clk 0:04:53.9]}
4. Nxd4 {[%clk 0:04:37.7]} 4... Nc6 {[%clk 0:04:52.9]} 5. c4 {[%clk 0:04:35.6]}
5... Nxd4 {[%clk 0:04:36]} 6. Qxd4 {[%clk 0:04:34.1]} 6... Nf6 {[%clk
0:04:31.8]} 7. Nc3 {[%clk 0:04:33.1]} 7... e6 {[%clk 0:04:21.4]} 8. f3 {[%clk
0:04:31.7]} 8... Be7 {[%clk 0:04:20.2]} 9. Be3 {[%clk 0:04:31.3]} 9... Kf8
{[%clk 0:04:18.4]} 10. Be2 {[%clk 0:04:30.9]} 10... b6 {[%clk 0:04:12.2]} 11.
O-O {[%clk 0:04:29.6]} 11... Bb7 {[%clk 0:04:08.1]} 12. Rfd1 {[%clk 0:04:28.5]}
12... Qc7 {[%clk 0:03:46.9]} 13. Nb5 {[%clk 0:04:27]} 13... Qd8 {[%clk
0:03:44.7]} 14. Nxd6 {[%clk 0:04:25.9]} 14... Bxd6 {[%clk 0:03:42.7]} 15. Qxd6+
{[%clk 0:04:25.8]} 15... Qxd6 {[%clk 0:03:38.6]} 16. Rxd6 {[%clk 0:04:25.7]}
16... g6 {[%clk 0:03:28.7]} 17. Rad1 {[%clk 0:04:12.5]} 17... Kg7 {[%clk
0:03:27.1]} 18. Bd4 {[%clk 0:04:10.6]} 18... Rhf8 {[%clk 0:02:58.2]} 19. Bc3
{[%clk 0:04:08.6]} 19... a6 {[%clk 0:02:53.1]} 20. Rxb6 {[%clk 0:04:06.9]} 20...
Rab8 {[%clk 0:02:47.1]} 21. Rd7 {[%clk 0:04:04.7]} 21... Bc8 {[%clk 0:02:34.4]}
22. Rxb8 {[%clk 0:04:03.1]} 22... Bxd7 {[%clk 0:02:31]} 23. Bxf6+ {[%clk
0:04:02.6]} 23... Kxf6 {[%clk 0:02:29.5]} 24. Rxf8 {[%clk 0:04:02.5]} 1-0

[Event "Live Chess"]
[Site "Chess.com"]
[Date "2023.05.21"]
[Round "-"]
[White "Conradical12"]
[Black "Tushinskiy"]
[Result "0-1"]
[WhiteElo "1649"]
[BlackElo "2187"]
[TimeControl "300"]
[EndTime "19:21:54 PDT"]
[Termination "Tushinskiy won by resignation"]

1. e4 {[%clk 0:04:55.4]} 1... e5 {[%clk 0:04:57.7]} 2. Nc3 {[%clk 0:04:54.4]}
2... d6 {[%clk 0:04:57.6]} 3. f4 {[%clk 0:04:52.9]} 3... Nf6 {[%clk 0:04:56.2]}
4. Nf3 {[%clk 0:04:51.5]} 4... Bg4 {[%clk 0:04:55.4]} 5. Bc4 {[%clk 0:04:50.3]}
5... Nbd7 {[%clk 0:04:54.3]} 6. O-O {[%clk 0:04:49.4]} 6... Be7 {[%clk
0:04:53.6]} 7. d3 {[%clk 0:04:47.5]} 7... O-O {[%clk 0:04:52.7]} 8. fxe5 {[%clk
0:04:46.4]} 8... dxe5 {[%clk 0:04:51.7]} 9. Be3 {[%clk 0:04:42]} 9... c6 {[%clk
0:04:50.5]} 10. Qd2 {[%clk 0:04:40.9]} 10... b5 {[%clk 0:04:47.6]} 11. Bb3
{[%clk 0:04:38.2]} 11... Qc7 {[%clk 0:04:46.9]} 12. Rae1 {[%clk 0:04:35.7]}
12... Rad8 {[%clk 0:04:45.2]} 13. Nh4 {[%clk 0:04:23.4]} 13... Nc5 {[%clk
0:04:42]} 14. Nf5 {[%clk 0:04:18.2]} 14... Bxf5 {[%clk 0:04:36.8]} 15. Rxf5
{[%clk 0:04:14.3]} 15... Nfxe4 {[%clk 0:04:32.6]} 16. Nxe4 {[%clk 0:04:05.8]}
16... Nxe4 {[%clk 0:02:47.3]} 17. Qe2 {[%clk 0:04:02.5]} 17... Nc5 {[%clk
0:02:43.9]} 18. Bxc5 {[%clk 0:03:49.7]} 18... Bxc5+ {[%clk 0:02:42.4]} 19. Kh1
{[%clk 0:03:49.5]} 19... Rde8 {[%clk 0:02:38.6]} 20. c3 {[%clk 0:03:31.7]} 20...
g6 {[%clk 0:02:36.6]} 21. Rf3 {[%clk 0:03:27.5]} 21... Kg7 {[%clk 0:02:35.1]}
22. Qe4 {[%clk 0:03:02.8]} 22... f5 {[%clk 0:02:29.9]} 23. Qe2 {[%clk
0:02:59.6]} 23... e4 {[%clk 0:02:28.3]} 24. Rh3 {[%clk 0:02:45.3]} 24... exd3
{[%clk 0:02:18.8]} 25. Qd2 {[%clk 0:02:44]} 25... Rxe1+ {[%clk 0:02:15.4]} 26.
Qxe1 {[%clk 0:02:43.9]} 26... Qd6 {[%clk 0:02:08.3]} 27. Qd1 {[%clk 0:02:40.6]}
27... Rd8 {[%clk 0:02:05.1]} 28. c4 {[%clk 0:02:35.1]} 28... b4 {[%clk
0:02:02.1]} 0-1

[Event "Live Chess"]
[Site "Chess.com"]
[Date "2023.05.21"]
[Round "-"]
[White "Duke_of_Bebington"]
[Black "nigelst"]
[Result "1-0"]
[WhiteElo "1594"]
[BlackElo "1735"]
[TimeControl "300"]
[EndTime "19:22:09 PDT"]
[Termination "Duke_of_Bebington won on time"]

1. e4 {[%clk 0:04:57.4]} 1... c6 {[%clk 0:04:57.9]} 2. d4 {[%clk 0:04:55.6]}
2... d5 {[%clk 0:04:56.5]} 3. Nc3 {[%clk 0:04:55.2]} 3... dxe4 {[%clk
0:04:55.3]} 4. Nxe4 {[%clk 0:04:54.3]} 4... Nf6 {[%clk 0:04:53.8]} 5. Nxf6+
{[%clk 0:04:52.6]} 5... exf6 {[%clk 0:04:52.7]} 6. Nf3 {[%clk 0:04:52]} 6... Bd6
{[%clk 0:04:51.6]} 7. Bd3 {[%clk 0:04:51.1]} 7... O-O {[%clk 0:04:49.4]} 8. Be3
{[%clk 0:04:50.1]} 8... Re8 {[%clk 0:04:47.2]} 9. O-O {[%clk 0:04:48.7]} 9...
Nd7 {[%clk 0:04:45.6]} 10. Qd2 {[%clk 0:04:47.4]} 10... Nf8 {[%clk 0:04:42.8]}
11. c3 {[%clk 0:04:44.9]} 11... Ng6 {[%clk 0:04:34.5]} 12. h4 {[%clk 0:04:42]}
12... Bg4 {[%clk 0:04:21.7]} 13. Nh2 {[%clk 0:04:38.4]} 13... Be6 {[%clk
0:04:17.8]} 14. h5 {[%clk 0:04:34.6]} 14... Ne7 {[%clk 0:04:15.4]} 15. Qc2
{[%clk 0:04:31.9]} 15... g6 {[%clk 0:04:11.7]} 16. hxg6 {[%clk 0:04:29.6]} 16...
fxg6 {[%clk 0:04:07.4]} 17. Rfe1 {[%clk 0:04:23.8]} 17... Qc7 {[%clk 0:04:02.6]}
18. g3 {[%clk 0:04:22.8]} 18... Nf5 {[%clk 0:03:52.8]} 19. Nf3 {[%clk
0:04:02.4]} 19... Nxe3 {[%clk 0:03:37]} 20. Rxe3 {[%clk 0:03:59]} 20... Bd5
{[%clk 0:03:35.5]} 21. Rae1 {[%clk 0:03:55.2]} 21... Qd7 {[%clk 0:03:24.6]} 22.
Qd2 {[%clk 0:03:17.9]} 22... Bxf3 {[%clk 0:03:21.7]} 23. Rxf3 {[%clk 0:03:16]}
23... Rxe1+ {[%clk 0:03:16.1]} 24. Qxe1 {[%clk 0:03:15.9]} 24... Re8 {[%clk
0:03:13.9]} 25. Qb1 {[%clk 0:03:09.3]} 25... Qe7 {[%clk 0:03:01.3]} 26. Re3
{[%clk 0:03:06.8]} 26... Qd7 {[%clk 0:02:54.8]} 27. Rf3 {[%clk 0:03:02.1]} 27...
Qg4 {[%clk 0:02:43.8]} 28. Qd1 {[%clk 0:02:52.7]} 28... Kg7 {[%clk 0:02:31.7]}
29. Be2 {[%clk 0:02:49.8]} 29... Qd7 {[%clk 0:02:23.9]} 30. Bd3 {[%clk
0:02:25.5]} 30... Re7 {[%clk 0:02:05.1]} 31. Qf1 {[%clk 0:02:17.8]} 31... Qe8
{[%clk 0:02:02.3]} 32. Qg2 {[%clk 0:02:07.8]} 32... Re1+ {[%clk 0:01:52.3]} 33.
Kh2 {[%clk 0:02:05.7]} 33... Qe6 {[%clk 0:00:54]} 34. a3 {[%clk 0:01:54.4]}
34... Qg4 {[%clk 0:00:48.7]} 35. Re3 {[%clk 0:01:40.3]} 35... Qh5+ {[%clk
0:00:41.8]} 36. Qh3 {[%clk 0:01:37.8]} 36... Rh1+ {[%clk 0:00:37.4]} 37. Kxh1
{[%clk 0:01:36.8]} 37... Qxh3+ {[%clk 0:00:35.7]} 38. Kg1 {[%clk 0:01:36.7]}
38... Qg4 {[%clk 0:00:18.7]} 39. Be2 {[%clk 0:01:30.8]} 39... Qf5 {[%clk
0:00:16.8]} 40. Kg2 {[%clk 0:01:26.2]} 40... Qb1 {[%clk 0:00:12.5]} 41. Bf3
{[%clk 0:01:22.8]} 41... Qxb2 {[%clk 0:00:10.4]} 42. d5 {[%clk 0:01:15.6]} 42...
cxd5 {[%clk 0:00:08.4]} 43. Bxd5 {[%clk 0:01:15.5]} 43... Qxa3 {[%clk
0:00:06.7]} 44. c4 {[%clk 0:01:13.7]} 44... Qc5 {[%clk 0:00:04.4]} 45. Rd3
{[%clk 0:01:06.8]} 45... a5 {[%clk 0:00:04.3]} 46. Rd1 {[%clk 0:01:02.9]} 46...
a4 {[%clk 0:00:04.2]} 47. Ra1 {[%clk 0:01:00.9]} 47... a3 {[%clk 0:00:04.1]} 48.
Ra2 {[%clk 0:00:59]} 48... Qb4 {[%clk 0:00:04]} 49. Re2 {[%clk 0:00:54]} 49...
Qb2 {[%clk 0:00:03.9]} 50. Rxb2 {[%clk 0:00:52]} 50... axb2 {[%clk 0:00:02.4]}
51. Be4 {[%clk 0:00:50.4]} 51... b1=Q {[%clk 0:00:02.3]} 52. Bxb1 {[%clk
0:00:48.9]} 1-0

[Event "Live Chess"]
[Site "Chess.com"]
[Date "2023.05.21"]
[Round "-"]
[White "therealab0ne"]
[Black "alanmike75"]
[Result "0-1"]
[WhiteElo "724"]
[BlackElo "1591"]
[TimeControl "300"]
[EndTime "19:22:20 PDT"]
[Termination "alanmike75 won by resignation"]

1. e4 {[%clk 0:04:58.8]} 1... e5 {[%clk 0:04:58.4]} 2. Bc4 {[%clk 0:04:58.1]}
2... Be7 {[%clk 0:04:56]} 3. Nc3 {[%clk 0:04:51.9]} 3... Nf6 {[%clk 0:04:54.2]}
4. d3 {[%clk 0:04:50.6]} 4... O-O {[%clk 0:04:52.7]} 5. f4 {[%clk 0:04:42.7]}
5... d6 {[%clk 0:04:49.9]} 6. Nf3 {[%clk 0:04:39]} 6... Nc6 {[%clk 0:04:47.2]}
7. O-O {[%clk 0:04:29.4]} 7... Bg4 {[%clk 0:04:45.6]} 8. Qe1 {[%clk 0:04:13.4]}
8... Bxf3 {[%clk 0:04:40.9]} 9. Rxf3 {[%clk 0:04:12.4]} 9... Nd4 {[%clk
0:04:39.5]} 10. Rf2 {[%clk 0:04:03.9]} 10... Ng4 {[%clk 0:04:34.8]} 11. Nd5
{[%clk 0:03:59.9]} 11... Nxf2 {[%clk 0:04:30.9]} 12. Qxf2 {[%clk 0:03:58.3]}
12... c6 {[%clk 0:04:27.2]} 13. Nxe7+ {[%clk 0:03:56.6]} 13... Qxe7 {[%clk
0:04:26.1]} 14. Be3 {[%clk 0:03:52]} 14... c5 {[%clk 0:04:21.6]} 15. Bxd4 {[%clk
0:03:50.1]} 15... cxd4 {[%clk 0:04:20]} 16. f5 {[%clk 0:03:47]} 16... Qf6 {[%clk
0:04:08.4]} 17. c3 {[%clk 0:03:30.1]} 17... dxc3 {[%clk 0:04:04.8]} 18. bxc3
{[%clk 0:03:29.4]} 18... b6 {[%clk 0:04:03.4]} 19. d4 {[%clk 0:03:28.8]} 19...
Rac8 {[%clk 0:04:00.4]} 20. Qe2 {[%clk 0:03:18.8]} 20... exd4 {[%clk 0:03:56.9]}
21. cxd4 {[%clk 0:03:17.8]} 21... Qxd4+ {[%clk 0:03:55]} 22. Kf1 {[%clk
0:03:17.2]} 22... Qxc4 {[%clk 0:03:53.6]} 23. Qxc4 {[%clk 0:03:16.1]} 23... Rxc4
{[%clk 0:03:52.2]} 24. Rd1 {[%clk 0:03:15.2]} 24... Rxe4 {[%clk 0:03:49]} 25.
Rxd6 {[%clk 0:03:14.3]} 25... Rf4+ {[%clk 0:03:45.5]} 26. Ke2 {[%clk 0:03:13.1]}
26... Rxf5 {[%clk 0:03:44.2]} 27. Ke3 {[%clk 0:03:12.2]} 27... Ra5 {[%clk
0:03:42.4]} 28. Kd4 {[%clk 0:03:11.3]} 28... Rxa2 {[%clk 0:03:41]} 29. Kc4
{[%clk 0:03:06]} 29... Rxg2 {[%clk 0:03:39.4]} 30. Kb5 {[%clk 0:03:03.6]} 30...
Rxh2 {[%clk 0:03:37.7]} 31. Ka6 {[%clk 0:03:02.9]} 31... Rh6 {[%clk 0:03:33.1]}
32. Rd7 {[%clk 0:02:58.8]} 32... b5+ {[%clk 0:03:32]} 33. Kxb5 {[%clk
0:02:55.4]} 33... a6+ {[%clk 0:03:29.8]} 34. Ka5 {[%clk 0:02:54.5]} 34... Re6
{[%clk 0:03:27.2]} 0-1

[Event "Live Chess"]
[Site "Chess.com"]
[Date "2023.05.21"]
[Round "-"]
[White "IgorSchukin"]
[Black "manthanit"]
[Result "1/2-1/2"]
[WhiteElo "1783"]
[BlackElo "1062"]
[TimeControl "300"]
[EndTime "19:22:51 PDT"]
[Termination "Game drawn - timeout vs insufficient material"]

1. e4 {[%clk 0:04:58.9]} 1... e6 {[%clk 0:04:58.9]} 2. Nc3 {[%clk 0:04:56.7]}
2... d6 {[%clk 0:04:58]} 3. Nf3 {[%clk 0:04:55.8]} 3... Bd7 {[%clk 0:04:57.5]}
4. d4 {[%clk 0:04:54.2]} 4... Be7 {[%clk 0:04:57.4]} 5. Bd3 {[%clk 0:04:53.1]}
5... Nf6 {[%clk 0:04:56]} 6. Be3 {[%clk 0:04:52.5]} 6... Nc6 {[%clk 0:04:54.8]}
7. Qd2 {[%clk 0:04:51.8]} 7... a6 {[%clk 0:04:53.8]} 8. O-O-O {[%clk 0:04:50.9]}
8... h6 {[%clk 0:04:53.1]} 9. h3 {[%clk 0:04:50.1]} 9... O-O {[%clk 0:04:47.3]}
10. g4 {[%clk 0:04:49.3]} 10... d5 {[%clk 0:04:41.9]} 11. e5 {[%clk 0:04:46.9]}
11... Ne8 {[%clk 0:04:37.8]} 12. Bxh6 {[%clk 0:04:43.1]} 12... f6 {[%clk
0:04:29.3]} 13. Kb1 {[%clk 0:04:35.9]} 13... fxe5 {[%clk 0:04:25.7]} 14. dxe5
{[%clk 0:04:34.6]} 14... Rxf3 {[%clk 0:04:22.2]} 15. Bg6 {[%clk 0:04:20]} 15...
Nxe5 {[%clk 0:04:12.7]} 16. Bxe8 {[%clk 0:04:09.9]} 16... Qxe8 {[%clk
0:04:11.5]} 17. Be3 {[%clk 0:03:59.7]} 17... Nc4 {[%clk 0:03:51.6]} 18. Qd4
{[%clk 0:03:57.4]} 18... Bf6 {[%clk 0:03:48.5]} 19. Qc5 {[%clk 0:03:50.1]} 19...
c6 {[%clk 0:03:43.9]} 20. Bd4 {[%clk 0:03:40.3]} 20... e5 {[%clk 0:03:28.1]} 21.
Nxd5 {[%clk 0:03:07.7]} 21... cxd5 {[%clk 0:03:14.4]} 22. Qxd5+ {[%clk
0:03:05.9]} 22... Be6 {[%clk 0:03:10.2]} 23. Qxf3 {[%clk 0:03:04.1]} 23... exd4
{[%clk 0:03:04.4]} 24. h4 {[%clk 0:02:58.1]} 24... Rd8 {[%clk 0:02:47.3]} 25.
Rhe1 {[%clk 0:02:53.2]} 25... Qg6 {[%clk 0:02:41.8]} 26. Rxe6 {[%clk 0:02:45.2]}
26... Ne5 {[%clk 0:02:02.2]} 27. Qxb7 {[%clk 0:02:19.4]} 27... Nxg4 {[%clk
0:01:56.9]} 28. Rg1 {[%clk 0:01:31.9]} 28... Qf5 {[%clk 0:01:52.9]} 29. Qxa6
{[%clk 0:01:21.3]} 29... Bxh4 {[%clk 0:01:30.7]} 30. Rg6 {[%clk 0:01:00.2]}
30... Rc8 {[%clk 0:01:07.8]} 31. Qe6+ {[%clk 0:00:48.6]} 31... Qxe6 {[%clk
0:01:01.1]} 32. Rxe6 {[%clk 0:00:47.6]} 32... Nxf2 {[%clk 0:00:53.4]} 33. a4
{[%clk 0:00:41]} 33... Bf6 {[%clk 0:00:52]} 34. Rxf6 {[%clk 0:00:38.9]} 34...
Ne4 {[%clk 0:00:44.1]} 35. Rfg6 {[%clk 0:00:34.1]} 35... Nd2+ {[%clk 0:00:38.2]}
36. Ka2 {[%clk 0:00:29]} 36... Rxc2 {[%clk 0:00:34.6]} 37. Rxg7+ {[%clk
0:00:27.4]} 37... Kf8 {[%clk 0:00:32.6]} 38. R7g2 {[%clk 0:00:18.8]} 38... d3
{[%clk 0:00:27.1]} 39. a5 {[%clk 0:00:12.7]} 39... Nc4 {[%clk 0:00:18.7]} 40.
Rxc2 {[%clk 0:00:10.6]} 40... dxc2 {[%clk 0:00:18]} 41. Rc1 {[%clk 0:00:08.7]}
41... Ne3 {[%clk 0:00:15.5]} 42. Kb3 {[%clk 0:00:06.9]} 42... Ke8 {[%clk
0:00:14.9]} 43. Rxc2 {[%clk 0:00:06.1]} 43... Nxc2 {[%clk 0:00:12.8]} 44. Kxc2
{[%clk 0:00:05.7]} 44... Kd7 {[%clk 0:00:12.5]} 45. b4 {[%clk 0:00:05]} 45...
Kc6 {[%clk 0:00:12.2]} 46. Kc3 {[%clk 0:00:04.5]} 46... Kb5 {[%clk 0:00:11.6]}
47. Kb3 {[%clk 0:00:04.2]} 47... Ka6 {[%clk 0:00:09.9]} 48. Kc4 {[%clk
0:00:03.3]} 48... Kb7 {[%clk 0:00:08.9]} 49. Kb5 {[%clk 0:00:02.6]} 49... Ka7
{[%clk 0:00:07.3]} 50. Kc6 {[%clk 0:00:02.3]} 50... Ka6 {[%clk 0:00:05.8]} 51.
b5+ {[%clk 0:00:01.8]} 51... Kxa5 {[%clk 0:00:05]} 52. b6 {[%clk 0:00:01.4]}
52... Ka6 {[%clk 0:00:04.1]} 53. Kc7 {[%clk 0:00:01]} 53... Ka5 {[%clk
0:00:01.9]} 54. b7 {[%clk 0:00:00.8]} 54... Ka6 {[%clk 0:00:01.4]} 55. b8=Q
{[%clk 0:00:00.1]} 55... Ka5 {[%clk 0:00:00.5]} 1/2-1/2

[Event "Live Chess"]
[Site "Chess.com"]
[Date "2023.05.21"]
[Round "-"]
[White "nigelst"]
[Black "Tushinskiy"]
[Result "0-1"]
[WhiteElo "1734"]
[BlackElo "2188"]
[TimeControl "300"]
[EndTime "19:23:07 PDT"]
[Termination "Tushinskiy won by checkmate"]

1. e4 {[%clk 0:04:59.5]} 1... e5 {[%clk 0:04:58.8]} 2. Nf3 {[%clk 0:04:58.2]}
2... d6 {[%clk 0:04:58.7]} 3. d4 {[%clk 0:04:56.5]} 3... Bg4 {[%clk 0:04:58.1]}
4. dxe5 {[%clk 0:04:55.4]} 4... Nd7 {[%clk 0:04:57.4]} 5. exd6 {[%clk
0:04:53.7]} 5... Bxd6 {[%clk 0:04:57.3]} 6. e5 {[%clk 0:04:52.4]} 6... Qe7
{[%clk 0:04:56.5]} 7. Be2 {[%clk 0:04:50.6]} 7... Nxe5 {[%clk 0:04:54.4]} 8.
Nxe5 {[%clk 0:04:47.9]} 8... Qxe5 {[%clk 0:04:54.3]} 9. Be3 {[%clk 0:04:43.9]}
9... Bxe2 {[%clk 0:04:33.6]} 10. Qxe2 {[%clk 0:04:42.2]} 10... O-O-O {[%clk
0:04:32.7]} 11. O-O {[%clk 0:04:40.2]} 11... Qxh2# {[%clk 0:04:31.1]} 0-1

[Event "Live Chess"]
[Site "Chess.com"]
[Date "2023.05.21"]
[Round "-"]
[White "ramses-IIG"]
[Black "KeithArkell"]
[Result "0-1"]
[WhiteElo "862"]
[BlackElo "2573"]
[TimeControl "300"]
[EndTime "19:23:36 PDT"]
[Termination "KeithArkell won by checkmate"]

1. e4 {[%clk 0:04:57.8]} 1... c6 {[%clk 0:04:59]} 2. Nf3 {[%clk 0:04:57.7]} 2...
d5 {[%clk 0:04:58.5]} 3. e5 {[%clk 0:04:56.3]} 3... Bg4 {[%clk 0:04:57]} 4. d4
{[%clk 0:04:56.2]} 4... e6 {[%clk 0:04:55.9]} 5. Be2 {[%clk 0:04:48.9]} 5... c5
{[%clk 0:04:54.8]} 6. c3 {[%clk 0:04:46.9]} 6... cxd4 {[%clk 0:04:53.5]} 7. cxd4
{[%clk 0:04:46.8]} 7... Bxf3 {[%clk 0:04:52]} 8. Bxf3 {[%clk 0:04:45.4]} 8...
Nc6 {[%clk 0:04:51.3]} 9. Qb3 {[%clk 0:04:40.9]} 9... Qb6 {[%clk 0:04:48.9]} 10.
Qxb6 {[%clk 0:04:38.9]} 10... axb6 {[%clk 0:04:48.8]} 11. O-O {[%clk 0:04:35.5]}
11... Nxd4 {[%clk 0:04:47.7]} 12. Bd1 {[%clk 0:04:27.3]} 12... Ne7 {[%clk
0:04:44.9]} 13. Nc3 {[%clk 0:04:23.8]} 13... Nec6 {[%clk 0:04:41.2]} 14. Be3
{[%clk 0:04:18.4]} 14... Bc5 {[%clk 0:04:37.5]} 15. Rb1 {[%clk 0:04:03.6]} 15...
O-O {[%clk 0:04:21]} 16. Bxd4 {[%clk 0:04:01.3]} 16... Bxd4 {[%clk 0:04:19.4]}
17. Nb5 {[%clk 0:04:00.4]} 17... Bxe5 {[%clk 0:04:17.5]} 18. Bf3 {[%clk
0:03:39.9]} 18... Rxa2 {[%clk 0:04:15.5]} 19. Rfc1 {[%clk 0:03:32.9]} 19... g6
{[%clk 0:04:10]} 20. Rc2 {[%clk 0:03:31.5]} 20... Kg7 {[%clk 0:04:06.3]} 21. g3
{[%clk 0:03:28.5]} 21... Nd4 {[%clk 0:04:02.1]} 22. Nxd4 {[%clk 0:03:19.3]}
22... Bxd4 {[%clk 0:04:02]} 23. Rc7 {[%clk 0:03:15.5]} 23... Rxb2 {[%clk
0:03:58.3]} 24. Rxb2 {[%clk 0:03:13]} 24... Bxb2 {[%clk 0:03:57.5]} 25. Rxb7
{[%clk 0:03:12.6]} 25... Bd4 {[%clk 0:03:56.5]} 26. Kg2 {[%clk 0:03:09.3]} 26...
Ra8 {[%clk 0:03:55]} 27. h3 {[%clk 0:03:06]} 27... Ra2 {[%clk 0:03:53.4]} 28. g4
{[%clk 0:03:03.2]} 28... Rxf2+ {[%clk 0:03:51.7]} 29. Kg3 {[%clk 0:03:03.1]}
29... Rb2 {[%clk 0:03:50.1]} 30. Kh4 {[%clk 0:03:01.3]} 30... h6 {[%clk
0:03:48.2]} 31. g5 {[%clk 0:02:59.2]} 31... h5 {[%clk 0:03:46.3]} 32. Kg3 {[%clk
0:02:44.3]} 32... Be5+ {[%clk 0:03:31.8]} 33. Kh4 {[%clk 0:02:42.3]} 33... Rb4+
{[%clk 0:03:30.2]} 34. Be4 {[%clk 0:02:37.9]} 34... Rxe4# {[%clk 0:03:28.1]} 0-1

[Event "Live Chess"]
[Site "Chess.com"]
[Date "2023.05.21"]
[Round "-"]
[White "garyjc"]
[Black "Conradical12"]
[Result "0-1"]
[WhiteElo "1046"]
[BlackElo "1649"]
[TimeControl "300"]
[EndTime "19:24:20 PDT"]
[Termination "Conradical12 won by resignation"]

1. e4 {[%clk 0:04:55.6]} 1... e5 {[%clk 0:04:58.7]} 2. Nf3 {[%clk 0:04:53]} 2...
Nc6 {[%clk 0:04:58]} 3. d4 {[%clk 0:04:51.8]} 3... exd4 {[%clk 0:04:56]} 4. Nxd4
{[%clk 0:04:50.6]} 4... Nf6 {[%clk 0:04:55.5]} 5. Nxc6 {[%clk 0:04:43.8]} 5...
bxc6 {[%clk 0:04:55.4]} 6. Nc3 {[%clk 0:04:42.1]} 6... Bc5 {[%clk 0:04:51.6]} 7.
e5 {[%clk 0:04:29.7]} 7... Qe7 {[%clk 0:04:48.1]} 8. Qe2 {[%clk 0:04:21.8]} 8...
Nd5 {[%clk 0:04:46]} 9. Bd2 {[%clk 0:04:12.1]} 9... O-O {[%clk 0:04:42.1]} 10.
O-O-O {[%clk 0:04:09.9]} 10... Rb8 {[%clk 0:04:39.2]} 11. Na4 {[%clk 0:04:04.7]}
11... Ba3 {[%clk 0:04:33.6]} 12. Kb1 {[%clk 0:03:39.1]} 12... Bxb2 {[%clk
0:04:14]} 13. Nxb2 {[%clk 0:03:36.5]} 13... Qa3 {[%clk 0:04:13]} 14. Bc3 {[%clk
0:03:34.1]} 14... Nxc3+ {[%clk 0:04:10.6]} 0-1

[Event "Live Chess"]
[Site "Chess.com"]
[Date "2023.05.21"]
[Round "-"]
[White "chessfiction"]
[Black "Long1968"]
[Result "1-0"]
[WhiteElo "2355"]
[BlackElo "1042"]
[TimeControl "300"]
[EndTime "19:24:31 PDT"]
[Termination "chessfiction won on time"]

1. e4 {[%clk 0:04:59.1]} 1... e6 {[%clk 0:04:55.4]} 2. d4 {[%clk 0:04:57.5]}
2... d5 {[%clk 0:04:54.3]} 3. Nc3 {[%clk 0:04:57.4]} 3... Bb4 {[%clk 0:04:50.8]}
4. e5 {[%clk 0:04:55.9]} 4... c5 {[%clk 0:04:48.6]} 5. Qg4 {[%clk 0:04:53.6]}
5... Ne7 {[%clk 0:04:42.4]} 6. Qxg7 {[%clk 0:04:50.3]} 6... Ng6 {[%clk 0:04:40]}
7. a3 {[%clk 0:04:45.9]} 7... cxd4 {[%clk 0:04:33.1]} 8. axb4 {[%clk 0:04:44.1]}
8... dxc3 {[%clk 0:04:31.1]} 9. bxc3 {[%clk 0:04:42.6]} 9... Qc7 {[%clk
0:04:28.3]} 10. Nf3 {[%clk 0:04:40.3]} 10... Qxc3+ {[%clk 0:04:23.1]} 11. Kd1
{[%clk 0:04:38.8]} 11... Qxa1 {[%clk 0:04:18.3]} 12. h4 {[%clk 0:04:35.4]} 12...
h5 {[%clk 0:04:04.2]} 13. Bd3 {[%clk 0:04:32.8]} 13... Nd7 {[%clk 0:03:47]} 14.
Bxg6 {[%clk 0:04:31.2]} 14... Rf8 {[%clk 0:03:29.9]} 15. Bxh5 {[%clk 0:04:24.5]}
15... b6 {[%clk 0:03:16.7]} 16. Re1 {[%clk 0:04:11.2]} 16... Ba6 {[%clk
0:03:03.6]} 17. Ng5 {[%clk 0:04:08.8]} 17... O-O-O {[%clk 0:02:54.1]} 18. Nf3
{[%clk 0:03:50.9]} 18... Rg8 {[%clk 0:02:35.9]} 19. Qxf7 {[%clk 0:03:48]} 19...
Rxg2 {[%clk 0:02:27.7]} 20. Qxe6 {[%clk 0:03:46.9]} 20... Rxf2 {[%clk
0:02:18.2]} 21. Qc6+ {[%clk 0:03:44.7]} 21... Kb8 {[%clk 0:02:07.8]} 22. Qd6+
{[%clk 0:03:32.8]} 22... Ka8 {[%clk 0:01:53.2]} 23. Qc7 {[%clk 0:03:17]} 23...
Rc8 {[%clk 0:01:30.3]} 24. Qxd7 {[%clk 0:03:15.7]} 24... Rfxc2 {[%clk
0:01:22.5]} 25. Qxc8+ {[%clk 0:03:11]} 25... Rxc8 {[%clk 0:01:19.3]} 26. Kd2
{[%clk 0:03:09.8]} 26... Qa2+ {[%clk 0:01:12.6]} 27. Ke3 {[%clk 0:03:08.6]}
27... Rc3+ {[%clk 0:01:07.5]} 28. Kf4 {[%clk 0:03:06]} 28... Qc4+ {[%clk
0:00:59.6]} 29. Kg3 {[%clk 0:03:03.3]} 29... d4 {[%clk 0:00:49]} 30. e6 {[%clk
0:03:01.9]} 30... Bb7 {[%clk 0:00:42.7]} 31. e7 {[%clk 0:02:59.6]} 31... Qg8+
{[%clk 0:00:34.3]} 32. Bg5 {[%clk 0:02:56.6]} 32... Bc6 {[%clk 0:00:20.6]} 33.
e8=Q+ {[%clk 0:02:52.8]} 33... Bxe8 {[%clk 0:00:17.5]} 34. Rxe8+ {[%clk
0:02:51.5]} 34... Qxe8 {[%clk 0:00:15.3]} 35. Bxe8 {[%clk 0:02:51.4]} 35... d3
{[%clk 0:00:10.8]} 36. Bg6 {[%clk 0:02:48.4]} 36... Rb3 {[%clk 0:00:02.5]} 37.
Bf4 {[%clk 0:02:46.9]} 1-0

[Event "Live Chess"]
[Site "Chess.com"]
[Date "2023.05.21"]
[Round "-"]
[White "ramses-IIG"]
[Black "Pablo_dmp"]
[Result "0-1"]
[WhiteElo "862"]
[BlackElo "1861"]
[TimeControl "300"]
[EndTime "19:24:32 PDT"]
[Termination "Pablo_dmp won by resignation"]

1. e4 {[%clk 0:04:58.7]} 1... c5 {[%clk 0:04:58.8]} 2. Nf3 {[%clk 0:04:58.6]}
2... Nc6 {[%clk 0:04:56.8]} 3. Bc4 {[%clk 0:04:58.1]} 3... d6 {[%clk 0:04:49.5]}
4. Ng5 {[%clk 0:04:55.7]} 4... e6 {[%clk 0:04:47.8]} 5. Qf3 {[%clk 0:04:51.1]}
5... Qxg5 {[%clk 0:04:44.7]} 6. d3 {[%clk 0:04:50.3]} 6... Qf6 {[%clk
0:04:42.6]} 7. Qxf6 {[%clk 0:04:44.6]} 7... Nxf6 {[%clk 0:04:42.5]} 8. Bg5
{[%clk 0:04:43.1]} 8... Be7 {[%clk 0:04:40.5]} 9. Bxf6 {[%clk 0:04:41.6]} 9...
Bxf6 {[%clk 0:04:38.8]} 10. O-O {[%clk 0:04:41.5]} 10... Bxb2 {[%clk 0:04:37.5]}
11. Bb5 {[%clk 0:04:41.4]} 11... Bxa1 {[%clk 0:04:36]} 12. Bxc6+ {[%clk
0:04:40.7]} 12... bxc6 {[%clk 0:04:35]} 0-1